{"text_format":"1","workbook":"xlsx","n_sheets":3,"sheets":["Themen","Daten","Präferenzen"],"not_rendered":{"charts":0,"images":2,"macros":1,"external_links":0,"defined_names":0,"comments":0,"pivot_tables":0},"unopened":[],"bounds":{"document_bytes":16777216,"sheet_cells":100000,"rows_first":2000,"rows_last":500,"rows_between":2000,"halvings":0,"cell_chars":16384,"cell_head_chars":4096},"cells_cut":0,"cells_raw":0,"read":"whole","date_system":"1900"}

{"sheet":"Themen","index":0,"n_rows":69,"n_cols":1,"rows_kept":69,"cut":false,"hidden":true,"merged":[]}
["1. Wirkungen und Nebenwirkungen staatlicher Interventionen: Kurzzeitkredite"]
["2. Wirkungen und Nebenwirkungen staatlicher Interventionen: Studentendarlehen"]
["3. Wirkungen und Nebenwirkungen staatlicher Interventionen: Regulation NMS"]
["4. Wirkungen und Nebenwirkungen staatlicher Interventionen: Steuerbegünstigte Sparpläne"]
["5. Wirkungen und Nebenwirkungen staatlicher Interventionen: Subventionierte Hypothekenrefinanzierung"]
["6. Handelsverhalten von Privatanlegern in der FinTech-Ära"]
["7. Finanzielle Selbstkontrollinstrumente in der FinTech-Ära"]
["8. Finanzielle Inklusion durch FinTech?"]
["9. Performance von auf die Anlegerstimmung abgestimmten Finanzprodukten"]
["10. Die Auswirkungen von Reputationskosten durch Rechtsstreitigkeiten auf die operative Performance von Unternehmen"]
["11. Kognitive Verzerrungen bei der Altersvorsorge mit 401 (k)-Plänen"]
["12. Der Einfluss kognitiver Verzerrungen auf das Schuldentilgungsverhalten"]
["13. Eine neue Perspektive auf die naive Diversifikation – Portfolio- vs. Transaktionslevel"]
["14. Wie kann Moral Hazard in der Bankenregulierung überwunden werden? Bail-out ist Geschichte"]
["15. Faktoren der Aktienmarktteilnahme"]
["16. Analyse der Herausforderungen für Versicherungen im Bereich der Haftpflichtversicherungen für autonomes Fahren"]
["17. Analyse zu den Auswirkungen der Inflation auf Versicherungsunternehmen"]
["18. Reservierungstechniken in der Schaden- und Unfallsversicherung"]
["19. Einflussfaktoren des Vertrauens in Versicherungsunternehmen"]
["20. Herausforderungen bei der Gestaltung von Krankenversicherungsverträgen"]
["21. Risikomanagement von Flutrisiken: Ein Vergleich zwischen Europa und den USA"]
["22. COVID-19 und die Nachfrage nach Versicherungen"]
["23. Selbstüberschätzung und Versicherungsentscheidungen"]
["24. CAT-Bonds als Instrument zur Absicherung von Klimarisiken"]
["25. Framing-Effekte bei fondsgebundenen Versicherungsprodukten"]
["26. Analyse von internationalen Hochwasserrisikomanagementsystemen"]
["27. Cyber-Risikomanagement"]
["28. Risikopräferenzen von Managern und der Einfluss von Anreizen"]
["29. Risikomaße im Risikomanagementprozess"]
["30. Bewertung der Bedeutung von Mikroversicherungen"]
["31. Einfluss von politischen Unsicherheiten auf Investoren und Unternehmen "]
["32. IPO Underpricing"]
["33. Momentum und Persistenz von Performance"]
["34. Leistung und das Risiko des Betrugs von Hedge-Fonds"]
["35. Retail Trading"]
["36. Der Einfluss der Wettbewerbsintensität auf die Innovationsleistung von Unternehmen"]
["37. Innovationsfinanzierung"]
["38. Der Einfluss von gestaffelten Amtszeiten für Mitglieder des Board of Directors auf den Unternehmenswert"]
["39. Der Einfluss von Corporate Social Responsibility auf die Kapitalkosten von Unternehmen"]
["40. Innovation und Patentschutz"]
["41. Limits to Arbitrage: Ein Überblick"]
["42. Factor Momentum Everywhere: Ein Überblick"]
["43. Taming the Factor Zoo: Ein Überblick"]
["44. Zeitvariabilität von Aktienrisikoprämien"]
["45. Multi-Asset-Portfolios: Vor- und Nachteile"]
["46. Conversational Artificial Intelligence im Versicherungs- und Finanzsektor"]
["47. AI in Versicherungen: Fluch oder Segen für Versicherungsinhaber:innen? Eine Übersicht der Anwendungen von AI in der Versicherungsindustrie sowie ethischer Implikationen"]
["48. Ethische Fragestellungen an der Schnittstelle von AI und Finanzen: Eine Literaturübersicht"]
["49. Natural Language Processing für das Verstehen finanzieller Narrative: Eine Übersicht"]
["50. Multimodale Künstliche Intelligenz für Finanzielle Vorhersagen: Ein Überblick"]
["51. Financial Opinion Mining: Eine Literaturübersicht"]
["52. Reinforcement Learning: Grundlagen und Anwendungen im automatischen Handeln"]
["53. Explainable Natural Language Processing für  Kreditrisikobewertungen: Eine Literaturübersicht"]
["54. Künstliche neuronale Netzwerke und ihre Anwendungen im Risikomanagement"]
["55. Stochastische Schadenreservierung unter Verwendung von Techniken der Unscharfen Statistik"]
["56. Value at Risk und Expected Shortfall: Ein kritischer Vergleich"]
["57. Stochastische Modelle für das Chain-Ladder-Verfahren"]
["58. Warum lieben Anleger Dividenden-Aktien?"]
["59. Vor und Nachteile von börsengehandelten Indexfonds (ETFs)"]
["60. Welches Multifaktor-Modell ist das beste?"]
["61. Die Metamorphosen des Qualitätskonzepts (Asset Management)"]
["62. Spieltheoretische Kapitalallokationsverfahren"]
["63. Eine kritische Auseinandersetzung mit der Standardformel von Solvency II"]
["64. Versicherungsnachfrage im Rahmen der Prospect Theory"]
["65. Short Term Portfolio Risk"]
["66. Finanzplanung mit Hilfe der Linearen Optimierung"]
["67. Die Bewertung von Wertpapieren mit Hilfe der Linearen Optimierung"]
["68. Das Erwartungswert-Varianz-Modell der Portefeuille-Theorie mit Hilfe der quadratischen Optimierung"]
["69. Die Bewertung von Portefeuilles mit kombinatorischen Nebenbedingungen mit Hilfe der gemischt-ganzzahligen Optimierung"]

{"sheet":"Daten","index":1,"n_rows":42,"n_cols":8,"rows_kept":42,"cut":false,"hidden":false,"merged":[[2,2,2,7],[3,2,3,7],[9,4,9,7],[11,4,11,7],[13,4,13,7],[15,4,15,7],[31,4,31,7],[33,4,33,7],[35,4,35,7],[17,4,17,7],[19,4,19,7],[21,4,21,7],[23,4,23,7],[25,4,25,7],[29,4,29,7]]}
[]
[]
[null,null,"Bewerbungsformular Bachelorarbeiten"]
[null,null,2023]
[]
[]
[]
[null,null,"Allgemeine Daten"]
[]
[null,null,"Anrede"]
[]
[null,null,"Nachname"]
[]
[null,null,"Vorname"]
[]
[null,null,"Straße, Hausnummer"]
[]
[null,null,"PLZ, Wohnort"]
[]
[null,null,"Matrikelnummer"]
[]
[null,null,"Studiengang"]
[]
[null,null,"E-Mail"]
[]
[null,null,"Gewünschter Starttermin"]
[]
[null,null,"Bisherige Studienleistungen"]
[]
[null,null,"Aktuelle Semesterzahl"]
[]
[null,null,"Aktueller Notendurchschnitt"]
[]
[null,null,"Aktueller Notendurchschnitt Schwerpunkt \"FBI\""]
[]
[null,null,"Note Bachelorseminar \"FBI\""]
[]
[]
[]
[null,null,"Check"]
[]
[null,null,"Alle persönlichen Daten ausgefüllt?",null,null,null,null,{"$f":"IF(COUNTA(E10:H36)-13=0,\"O.K.\",\"X\")","v":"X"}]

{"sheet":"Präferenzen","index":2,"n_rows":158,"n_cols":9,"rows_kept":158,"cut":false,"hidden":false,"merged":[[2,2,2,7],[3,2,3,7],[7,2,8,7],[21,4,21,7],[23,4,23,7],[25,4,25,7],[27,4,27,7],[29,4,29,7],[31,4,31,7],[33,4,33,7],[35,4,35,7],[37,4,37,7],[39,4,39,7],[41,4,41,7],[43,4,43,7],[45,4,45,7],[47,4,47,7],[49,4,49,7],[51,4,51,7],[53,4,53,7],[55,4,55,7],[57,4,57,7],[59,4,59,7],[61,4,61,7],[63,4,63,7],[65,4,65,7],[67,4,67,7],[69,4,69,7],[71,4,71,7],[73,4,73,7],[75,4,75,7],[77,4,77,7],[79,4,79,7],[81,4,81,7],[83,4,83,7],[85,4,85,7],[87,4,87,7],[89,4,89,7],[91,4,91,7],[93,4,93,7],[95,4,95,7],[97,4,97,7],[99,4,99,7],[101,4,101,7],[103,4,103,7],[105,4,105,7],[107,4,107,7],[109,4,109,7],[111,4,111,7],[113,4,113,7],[115,4,115,7],[117,4,117,7],[119,4,119,7],[121,4,121,7],[123,4,123,7],[125,4,125,7],[127,4,127,7],[129,4,129,7],[131,4,131,7],[133,4,133,7],[135,4,135,7],[137,4,137,7],[139,4,139,7],[141,4,141,7],[143,4,143,7],[155,4,155,7],[157,4,157,7],[145,4,145,7],[147,4,147,7],[149,4,149,7],[151,4,151,7],[153,4,153,7]]}
[]
[]
[null,null,"Themenpräferenzen für Bachelorarbeiten"]
[null,null,2023]
[]
[]
[]
[null,null,"Bitte füllen Sie das Formular wie nachfolgend beschrieben aus. Definieren und sortieren Sie die von Ihnen präferierten Themen, indem Sie diese über das Drop-Down-Menü an der entsprechenden Präferenzposition auswählen. Gehen Sie hierbei chronologisch von der ersten Präferenz ausgehend vor. Im Idealfall wählen Sie für jede Präferenzposition ein Thema (vollständige Präferenzordnung). Sollten Sie in Bezug auf die niedrigeren Präferenzpositionen indifferent zwischen den verbleibenden Themen sein, können Sie diese Positionen frei lassen. Geben Sie anschließend in dem unten angezeigten Feld die Anzahl der eigenständig gewählten Präferenzpositionen an und klicken auf den Button neben dem Feld. Hierdurch werden die freigelassenen Felder durch einen Zufallsgenerator gefüllt. Das Indikatorfeld zeigt Ihnen, ob Sie das Formular korrekt ausgefüllt haben.\n\nKontrollieren Sie abschließend noch einmal die erstellte Präferenzliste und speichern Sie die Datei in folgendem Format ab: Vorname_Nachname_Matrikelnummer.xlsx. Bitte fügen Sie das ausgefüllte Formular über das Online-Bewerbungsformular Ihrer Bewerbung bei. Ohne die beigefügte und korrekt ausgefüllte Präferenzliste gilt Ihre Bewerbung als unvollständig und wird nicht berücksichtigt."]
[]
[]
[]
[]
[null,null,"Anzahl der eigenständig gewählten Themen"]
[null,null,"Anzahl der automatisch gewählten Themen",null,null,{"$f":"MAX($C$22:$C$1048576)-F13","v":69},"<-Zelle berechnet sich automatisch"]
[null,null,"Themenpräferenzliste korrekt ausgefüllt?",null,null,{"$f":"IF(AND(COUNTIF($I$22:$I$158,\"doppelt\")=0,COUNTA($E$22:$E$158)=SUM(F13:F14)),\"O.K.\",\"X\")","v":"X"}]
[]
[]
[]
[]
[null,null,"Themenpräferenzen"]
[]
[null,null,1,null,null,null,null,null,{"$f":"IF(COUNTIF($E$22:$E$158,E22)>1,\"doppelt\",\"\")","v":""}]
[]
[null,null,2,null,null,null,null,null,{"$f":"IF(COUNTIF($E$22:$E$158,E24)>1,\"doppelt\",\"\")","v":""}]
[]
[null,null,3,null,null,null,null,null,{"$f":"IF(COUNTIF($E$22:$E$158,E26)>1,\"doppelt\",\"\")","v":""}]
[]
[null,null,4,null,null,null,null,null,{"$f":"IF(COUNTIF($E$22:$E$158,E28)>1,\"doppelt\",\"\")","v":""}]
[]
[null,null,5,null,null,null,null,null,{"$f":"IF(COUNTIF($E$22:$E$158,E30)>1,\"doppelt\",\"\")","v":""}]
[]
[null,null,6,null,null,null,null,null,{"$f":"IF(COUNTIF($E$22:$E$158,E32)>1,\"doppelt\",\"\")","v":""}]
[]
[null,null,7,null,null,null,null,null,{"$f":"IF(COUNTIF($E$22:$E$158,E34)>1,\"doppelt\",\"\")","v":""}]
[]
[null,null,8,null,null,null,null,null,{"$f":"IF(COUNTIF($E$22:$E$158,E36)>1,\"doppelt\",\"\")","v":""}]
[]
[null,null,9,null,null,null,null,null,{"$f":"IF(COUNTIF($E$22:$E$158,E38)>1,\"doppelt\",\"\")","v":""}]
[]
[null,null,10,null,null,null,null,null,{"$f":"IF(COUNTIF($E$22:$E$158,E40)>1,\"doppelt\",\"\")","v":""}]
[]
[null,null,11,null,null,null,null,null,{"$f":"IF(COUNTIF($E$22:$E$158,E42)>1,\"doppelt\",\"\")","v":""}]
[]
[null,null,12,null,null,null,null,null,{"$f":"IF(COUNTIF($E$22:$E$158,E44)>1,\"doppelt\",\"\")","v":""}]
[]
[null,null,13,null,null,null,null,null,{"$f":"IF(COUNTIF($E$22:$E$158,E46)>1,\"doppelt\",\"\")","v":""}]
[]
[null,null,14,null,null,null,null,null,{"$f":"IF(COUNTIF($E$22:$E$158,E48)>1,\"doppelt\",\"\")","v":""}]
[]
[null,null,15,null,null,null,null,null,{"$f":"IF(COUNTIF($E$22:$E$158,E50)>1,\"doppelt\",\"\")","v":""}]
[]
[null,null,16,null,null,null,null,null,{"$f":"IF(COUNTIF($E$22:$E$158,E52)>1,\"doppelt\",\"\")","v":""}]
[]
[null,null,17,null,null,null,null,null,{"$f":"IF(COUNTIF($E$22:$E$158,E54)>1,\"doppelt\",\"\")","v":""}]
[]
[null,null,18,null,null,null,null,null,{"$f":"IF(COUNTIF($E$22:$E$158,E56)>1,\"doppelt\",\"\")","v":""}]
[]
[null,null,19,null,null,null,null,null,{"$f":"IF(COUNTIF($E$22:$E$158,E58)>1,\"doppelt\",\"\")","v":""}]
[]
[null,null,20,null,null,null,null,null,{"$f":"IF(COUNTIF($E$22:$E$158,E60)>1,\"doppelt\",\"\")","v":""}]
[]
[null,null,21,null,null,null,null,null,{"$f":"IF(COUNTIF($E$22:$E$158,E62)>1,\"doppelt\",\"\")","v":""}]
[]
[null,null,22,null,null,null,null,null,{"$f":"IF(COUNTIF($E$22:$E$158,E64)>1,\"doppelt\",\"\")","v":""}]
[]
[null,null,23,null,null,null,null,null,{"$f":"IF(COUNTIF($E$22:$E$158,E66)>1,\"doppelt\",\"\")","v":""}]
[]
[null,null,24,null,null,null,null,null,{"$f":"IF(COUNTIF($E$22:$E$158,E68)>1,\"doppelt\",\"\")","v":""}]
[]
[null,null,25,null,null,null,null,null,{"$f":"IF(COUNTIF($E$22:$E$158,E70)>1,\"doppelt\",\"\")","v":""}]
[]
[null,null,26,null,null,null,null,null,{"$f":"IF(COUNTIF($E$22:$E$158,E72)>1,\"doppelt\",\"\")","v":""}]
[]
[null,null,27,null,null,null,null,null,{"$f":"IF(COUNTIF($E$22:$E$158,E74)>1,\"doppelt\",\"\")","v":""}]
[]
[null,null,28,null,null,null,null,null,{"$f":"IF(COUNTIF($E$22:$E$158,E76)>1,\"doppelt\",\"\")","v":""}]
[]
[null,null,29,null,null,null,null,null,{"$f":"IF(COUNTIF($E$22:$E$158,E78)>1,\"doppelt\",\"\")","v":""}]
[]
[null,null,30,null,null,null,null,null,{"$f":"IF(COUNTIF($E$22:$E$158,E80)>1,\"doppelt\",\"\")","v":""}]
[]
[null,null,31,null,null,null,null,null,{"$f":"IF(COUNTIF($E$22:$E$158,E82)>1,\"doppelt\",\"\")","v":""}]
[]
[null,null,32,null,null,null,null,null,{"$f":"IF(COUNTIF($E$22:$E$158,E84)>1,\"doppelt\",\"\")","v":""}]
[]
[null,null,33,null,null,null,null,null,{"$f":"IF(COUNTIF($E$22:$E$158,E86)>1,\"doppelt\",\"\")","v":""}]
[]
[null,null,34,null,null,null,null,null,{"$f":"IF(COUNTIF($E$22:$E$158,E88)>1,\"doppelt\",\"\")","v":""}]
[]
[null,null,35,null,null,null,null,null,{"$f":"IF(COUNTIF($E$22:$E$158,E90)>1,\"doppelt\",\"\")","v":""}]
[]
[null,null,36,null,null,null,null,null,{"$f":"IF(COUNTIF($E$22:$E$158,E92)>1,\"doppelt\",\"\")","v":""}]
[]
[null,null,37,null,null,null,null,null,{"$f":"IF(COUNTIF($E$22:$E$158,E94)>1,\"doppelt\",\"\")","v":""}]
[]
[null,null,38,null,null,null,null,null,{"$f":"IF(COUNTIF($E$22:$E$158,E96)>1,\"doppelt\",\"\")","v":""}]
[]
[null,null,39,null,null,null,null,null,{"$f":"IF(COUNTIF($E$22:$E$158,E98)>1,\"doppelt\",\"\")","v":""}]
[]
[null,null,40,null,null,null,null,null,{"$f":"IF(COUNTIF($E$22:$E$158,E100)>1,\"doppelt\",\"\")","v":""}]
[]
[null,null,41,null,null,null,null,null,{"$f":"IF(COUNTIF($E$22:$E$158,E102)>1,\"doppelt\",\"\")","v":""}]
[]
[null,null,42,null,null,null,null,null,{"$f":"IF(COUNTIF($E$22:$E$158,E104)>1,\"doppelt\",\"\")","v":""}]
[]
[null,null,43,null,null,null,null,null,{"$f":"IF(COUNTIF($E$22:$E$158,E106)>1,\"doppelt\",\"\")","v":""}]
[]
[null,null,44,null,null,null,null,null,{"$f":"IF(COUNTIF($E$22:$E$158,E108)>1,\"doppelt\",\"\")","v":""}]
[]
[null,null,45,null,null,null,null,null,{"$f":"IF(COUNTIF($E$22:$E$158,E110)>1,\"doppelt\",\"\")","v":""}]
[]
[null,null,46,null,null,null,null,null,{"$f":"IF(COUNTIF($E$22:$E$158,E112)>1,\"doppelt\",\"\")","v":""}]
[]
[null,null,47,null,null,null,null,null,{"$f":"IF(COUNTIF($E$22:$E$158,E114)>1,\"doppelt\",\"\")","v":""}]
[]
[null,null,48,null,null,null,null,null,{"$f":"IF(COUNTIF($E$22:$E$158,E116)>1,\"doppelt\",\"\")","v":""}]
[]
[null,null,49,null,null,null,null,null,{"$f":"IF(COUNTIF($E$22:$E$158,E118)>1,\"doppelt\",\"\")","v":""}]
[]
[null,null,50,null,null,null,null,null,{"$f":"IF(COUNTIF($E$22:$E$158,E120)>1,\"doppelt\",\"\")","v":""}]
[]
[null,null,51,null,null,null,null,null,{"$f":"IF(COUNTIF($E$22:$E$158,E122)>1,\"doppelt\",\"\")","v":""}]
[]
[null,null,52,null,null,null,null,null,{"$f":"IF(COUNTIF($E$22:$E$158,E124)>1,\"doppelt\",\"\")","v":""}]
[]
[null,null,53,null,null,null,null,null,{"$f":"IF(COUNTIF($E$22:$E$158,E126)>1,\"doppelt\",\"\")","v":""}]
[]
[null,null,54,null,null,null,null,null,{"$f":"IF(COUNTIF($E$22:$E$158,E128)>1,\"doppelt\",\"\")","v":""}]
[]
[null,null,55,null,null,null,null,null,{"$f":"IF(COUNTIF($E$22:$E$158,E130)>1,\"doppelt\",\"\")","v":""}]
[]
[null,null,56,null,null,null,null,null,{"$f":"IF(COUNTIF($E$22:$E$158,E132)>1,\"doppelt\",\"\")","v":""}]
[]
[null,null,57,null,null,null,null,null,{"$f":"IF(COUNTIF($E$22:$E$158,E134)>1,\"doppelt\",\"\")","v":""}]
[]
[null,null,58,null,null,null,null,null,{"$f":"IF(COUNTIF($E$22:$E$158,E136)>1,\"doppelt\",\"\")","v":""}]
[]
[null,null,59,null,null,null,null,null,{"$f":"IF(COUNTIF($E$22:$E$158,E138)>1,\"doppelt\",\"\")","v":""}]
[]
[null,null,60,null,null,null,null,null,{"$f":"IF(COUNTIF($E$22:$E$158,E140)>1,\"doppelt\",\"\")","v":""}]
[]
[null,null,61,null,null,null,null,null,{"$f":"IF(COUNTIF($E$22:$E$158,E142)>1,\"doppelt\",\"\")","v":""}]
[]
[null,null,62,null,null,null,null,null,{"$f":"IF(COUNTIF($E$22:$E$158,E144)>1,\"doppelt\",\"\")","v":""}]
[]
[null,null,63,null,null,null,null,null,{"$f":"IF(COUNTIF($E$22:$E$158,E146)>1,\"doppelt\",\"\")","v":""}]
[]
[null,null,64,null,null,null,null,null,{"$f":"IF(COUNTIF($E$22:$E$158,E148)>1,\"doppelt\",\"\")","v":""}]
[]
[null,null,65,null,null,null,null,null,{"$f":"IF(COUNTIF($E$22:$E$158,E150)>1,\"doppelt\",\"\")","v":""}]
[]
[null,null,66,null,null,null,null,null,{"$f":"IF(COUNTIF($E$22:$E$158,E152)>1,\"doppelt\",\"\")","v":""}]
[]
[null,null,67,null,null,null,null,null,{"$f":"IF(COUNTIF($E$22:$E$158,E154)>1,\"doppelt\",\"\")","v":""}]
[]
[null,null,68,null,null,null,null,null,{"$f":"IF(COUNTIF($E$22:$E$158,E156)>1,\"doppelt\",\"\")","v":""}]
[]
[null,null,69,null,null,null,null,null,{"$f":"IF(COUNTIF($E$22:$E$158,E158)>1,\"doppelt\",\"\")","v":""}]